bitfinex-derivatives/quotes_SOLF0:USTF0_20241127
["timestamp","ask_amount","ask_price","bid_price","bid_amount"]
[1732733272559,2.085,239.54,239.51,2.22]
[1732733272749,8.94222284,239.53,239.51,2.22]
[1732733273052,33.4509422,239.65,239.51,8.63850756]
[1732733273263,6.41850756,239.59,239.51,8.63850756]
[1732733273462,8.94203373,239.58,239.51,8.63850756]
[1732733273749,8.94203373,239.57,239.51,8.63850756]
[1732733273954,11.02683373,239.56,239.52,2.085]
[1732733274154,8.94203373,239.55,239.51,2.22]
[1732733274351,8.94203373,239.54,239.51,2.22]
[1732733274555,8.94203373,239.53,239.51,2.22]
[1732733274757,8.94139959,239.52,239.51,2.22]
[1732733275450,2.085,239.53,239.51,2.22]
[1732733279461,2.0849,239.54,239.51,2.22]
[1732733281666,2.0848,239.56,239.52,8.50360756]
[1732733281863,8.95191184,239.55,239.52,8.50360756]
[1732733282065,8.95191184,239.54,239.52,8.50360756]
[1732733282262,2.0848,239.56,239.52,8.50360756]
[1732733282480,8.95177742,239.55,239.52,8.50360756]
[1732733282766,8.95177742,239.54,239.51,4.3051]
[1732733282962,2.0848,239.55,239.51,4.3051]
[1732733283164,8.95157151,239.54,239.51,4.3051]
[1732733283359,2.0848,239.55,239.51,4.3051]
[1732733283559,8.95098607,239.54,239.51,4.3051]
[1732733283757,8.95098607,239.53,239.51,4.3051]
[1732733283957,8.95098607,239.52,239.51,2.22]
[1732733284363,8.95098607,239.55,239.51,2.22]
[1732733284557,2.085,239.53,239.51,2.22]
[1732733284763,8.95098607,239.52,239.51,2.22]
[1732733285066,11.03608607,239.52,239.51,2.22]
[1732733285264,8.95098607,239.52,239.51,2.22]
[1732733286559,2.0853,239.5,239.47,2.0855]
[1732733286774,2.0853,239.5,239.48,2.22]
[1732733287161,8.95148545,239.49,239.48,2.22]
[1732733287564,2.0855,239.48,239.47,2.22]
[1732733288662,2.0853,239.5,239.47,2.22]
[1732733288863,8.94924755,239.49,239.47,2.22]
[1732733289078,6.41850756,239.52,239.47,2.22]
[1732733289263,8.95025164,239.51,239.47,2.22]
[1732733289459,8.95025164,239.5,239.47,2.22]
[1732733289666,2.0854,239.48,239.47,2.22]
[1732733290166,11.03540383,239.48,239.46,2.22]
[1732733290366,2.0854,239.48,239.46,2.22]
[1732733291770,6.41850756,239.48,239.43,2.22]
[1732733291975,6.41850756,239.46,239.43,2.22]
[1732733292265,2.0858,239.44,239.43,2.22]
[1732733293173,1.3032,239.51,239.43,2.22]
[1732733293368,15.36530619,239.5,239.43,4.3058]
[1732733293570,8.94679863,239.49,239.43,4.3058]
[1732733293766,8.94679863,239.48,239.43,4.3058]
[1732733293963,8.94679863,239.47,239.43,4.3058]
[1732733294171,6.41850756,239.5,239.43,4.3058]
[1732733294469,8.94775909,239.49,239.43,4.3058]
[1732733294776,8.94775909,239.48,239.43,4.3058]
[1732733295063,2.0855,239.47,239.43,4.3058]
[1732733295268,6.41850756,239.5,239.43,4.3058]
[1732733295464,8.94841939,239.49,239.43,4.3058]
[1732733295718,8.94841939,239.48,239.43,4.3058]
[1732733296080,2.0854,239.48,239.43,4.3058]
[1732733296171,8.94821694,239.47,239.43,4.3058]
[1732733296367,6.41850756,239.47,239.43,2.22]
[1732733296570,2.0857,239.45,239.43,2.22]
[1732733297167,1.3032,239.51,239.43,2.22]
[1732733297371,2.0856,239.46,239.43,2.22]
[1732733297765,6.41850756,239.48,239.43,2.22]
[1732733298073,2.0857,239.45,239.43,2.22]
[1732733298369,6.41850756,239.48,239.43,2.22]
[1732733298570,2.0856,239.46,239.43,2.22]
[1732733298882,7.72170756,239.51,239.43,8.63850756]
[1732733299098,2.0853,239.49,239.43,8.63850756]
[1732733299370,8.94534756,239.48,239.45,6.41850756]
[1732733299571,1.2203,239.55,239.45,6.41850756]
[1732733299772,2.0852,239.51,239.46,2.0855]
[1732733300196,8.94664778,239.5,239.46,2.0855]
[1732733300471,8.94664778,239.49,239.46,2.0855]
[1732733300666,6.41850756,239.54,239.46,2.0855]
[1732733300863,8.94654364,239.53,239.46,2.0855]
[1732733301077,8.94654364,239.52,239.46,2.0855]
[1732733301371,8.94654364,239.51,239.46,2.0855]
[1732733301675,8.94654364,239.5,239.46,2.0855]
[1732733301870,8.94654364,239.49,239.46,2.0855]
[1732733302177,2.0852,239.5,239.46,2.0855]
[1732733302384,8.94286949,239.49,239.46,4.3055]
[1732733302769,2.0852,239.5,239.46,4.3055]
[1732733302975,8.9426128,239.49,239.46,4.3055]
[1732733303278,8.94253416,239.48,239.46,2.22]
[1732733303474,2.0853,239.49,239.46,2.22]
[1732733303677,8.94240788,239.48,239.46,2.22]
[1732733303976,2.0853,239.49,239.46,4.3056]
[1732733304675,2.0852,239.5,239.46,4.3056]
[1732733304872,8.94551121,239.49,239.46,4.3056]
[1732733305072,2.0852,239.5,239.46,4.3056]
[1732733305376,8.94615352,239.49,239.46,4.3056]
[1732733305869,8.94589614,239.48,239.46,4.3056]
[1732733306274,2.0853,239.49,239.46,4.3056]
[1732733306469,8.94672186,239.48,239.46,4.3056]
[1732733306671,2.0853,239.49,239.46,4.3056]
[1732733306876,8.94668386,239.48,239.46,4.3056]
[1732733307079,2.0852,239.5,239.46,4.3056]
[1732733307279,8.94662166,239.49,239.46,4.3056]
[1732733307579,6.41850756,239.54,239.46,4.3056]
[1732733307778,8.9466384,239.53,239.46,4.3056]
[1732733307979,8.9466384,239.52,239.46,4.3056]
[1732733308176,8.9466384,239.51,239.46,4.3056]
[1732733308381,8.9466384,239.5,239.46,4.3056]
[1732733308582,8.9466384,239.49,239.46,4.3056]
[1732733308780,2.0852,239.51,239.46,4.3056]
[1732733308983,8.95183311,239.5,239.46,4.3056]
[1732733309234,8.95183311,239.49,239.46,4.3056]
[1732733309484,2.0852,239.51,239.46,4.3056]
[1732733309680,8.95280153,239.5,239.46,2.22]
[1732733309886,1.2152,239.57,239.49,6.41850756]
[1732733310085,8.95404642,239.56,239.53,6.41850756]
[1732733310375,1.2991,239.64,239.54,4.3049]
[1732733310376,8.95532431,239.55,239.54,4.3049]
[1732733310783,8.95532431,239.55,239.54,2.22]
[1732733315793,8.95532431,239.55,239.54,4.3049]
[1732733315888,8.95532431,239.55,239.54,10.72340756]
[1732733316085,2.5749,239.64,239.54,8.63850756]
[1732733316280,2.0842,239.62,239.58,2.0845]
[1732733316481,8.96226029,239.61,239.58,2.0845]
[1732733316688,8.96226029,239.6,239.58,2.0845]
[1732733316889,8.96226029,239.59,239.58,2.0845]
[1732733317887,8.96226029,239.59,239.58,8.50300756]
[1732733318287,2.0841,239.64,239.61,2.0843]
[1732733318590,8.95607197,239.63,239.61,2.0843]
[1732733318970,8.95607197,239.62,239.61,2.0843]
[1732733319081,8.95607197,239.64,239.6,2.22]
[1732733319285,8.95607197,239.63,239.6,2.22]
[1732733319494,8.95607197,239.63,239.5,1.2171]
[1732733319495,6.41850756,239.61,239.56,2.22]
[1732733319686,8.50300756,239.59,239.54,2.22]
[1732733319888,6.41850756,239.61,239.54,2.22]
[1732733320091,8.94588075,239.6,239.54,2.22]
[1732733320289,8.94588075,239.59,239.54,2.22]
[1732733320504,6.41850756,239.61,239.54,2.22]
[1732733320691,11.02776599,239.6,239.56,2.0847]
[1732733320894,6.41850756,239.61,239.54,2.22]
[1732733320895,8.94336599,239.59,239.54,2.22]
[1732733321096,8.94214854,239.58,239.54,2.22]
[1732733321391,6.41850756,239.61,239.54,2.22]
[1732733321392,6.41850756,239.61,239.56,2.0847]
[1732733321590,8.94060134,239.6,239.56,2.0847]
[1732733321795,8.94060134,239.59,239.56,2.0847]
[1732733322098,8.94060134,239.58,239.56,2.0847]
[1732733322295,2.0845,239.59,239.56,2.0847]
[1732733322497,8.93924576,239.58,239.56,2.0847]
[1732733322795,2.0845,239.59,239.56,2.0847]
[1732733322998,8.93957047,239.58,239.56,2.0847]
[1732733323188,2.0845,239.59,239.56,2.0847]
[1732733323403,8.93822862,239.58,239.56,2.0847]
[1732733323691,8.93822862,239.58,239.54,2.22]
[1732733323692,2.0845,239.59,239.54,2.22]
[1732733323891,8.93777181,239.58,239.55,2.0848]
[1732733324086,2.0845,239.59,239.55,2.0848]
[1732733324294,8.93678694,239.58,239.55,2.0848]
[1732733324497,6.41850756,239.61,239.54,2.22]
[1732733324700,11.01641736,239.6,239.56,2.0847]
[1732733324998,8.93201736,239.59,239.56,2.0847]
[1732733325200,8.93201736,239.58,239.56,2.0847]
[1732733325411,2.0844,239.6,239.56,2.0847]
[1732733325600,8.92699059,239.59,239.58,2.0845]
[1732733325995,2.0842,239.62,239.58,2.0845]
[1732733326203,8.92701797,239.61,239.59,8.50290756]
[1732733326398,8.92701797,239.6,239.59,8.50290756]
[1732733326594,2.0841,239.64,239.59,8.50290756]
[1732733326900,33.44228629,239.71,239.6,4.2844]
[1732733326901,8.92893903,239.63,239.6,4.2844]
[1732733327200,8.92893903,239.62,239.6,4.2844]
[1732733327399,8.92893903,239.61,239.6,4.2844]
[1732733327998,8.92893903,239.61,239.6,2.2]
[1732733329800,2.0842,239.62,239.6,2.2]
[1732733330596,2.0843,239.61,239.6,2.2]
[1732733331399,2.0842,239.63,239.6,2.2]
[1732733331802,6.41850756,239.67,239.6,2.2]
[1732733331998,2.084,239.65,239.6,2.2]
[1732733332204,8.92022307,239.64,239.6,4.2843]
[1732733332413,2.084,239.65,239.6,4.2843]
[1732733332602,8.91815791,239.64,239.6,10.70280756]
[1732733332801,2.084,239.65,239.6,10.70280756]
[1732733333003,8.91806907,239.64,239.6,10.70280756]
[1732733333200,33.44228629,239.71,239.6,10.70280756]
[1732733333201,33.44228629,239.71,239.62,6.41850756]
[1732733333404,8.91622582,239.7,239.64,6.41850756]
[1732733333615,8.91622582,239.69,239.66,6.41850756]
[1732733333966,8.91622582,239.68,239.67,2.2]
[1732733334384,8.91622582,239.69,239.67,2.2]
[1732733334497,2.0836,239.7,239.67,2.2]
[1732733334498,8.91622582,239.68,239.67,2.2]
[1732733336001,2.0836,239.7,239.67,2.2]
[1732733336309,8.91242568,239.69,239.67,2.2]
[1732733336510,2.0836,239.7,239.67,2.2]
[1732733336707,8.91235225,239.69,239.67,2.2]
[1732733336908,8.9123932,239.68,239.67,2.2]
[1732733337507,8.9123932,239.68,239.67,10.70230756]
[1732733337711,6.41850756,239.75,239.67,8.61850756]
[1732733338006,8.91177364,239.74,239.67,8.61850756]
[1732733338208,10.99507364,239.73,239.68,2.0837]
[1732733338408,8.91177364,239.72,239.68,2.0837]
[1732733338607,8.91177364,239.71,239.68,2.0837]
[1732733338816,6.41850756,239.75,239.68,2.0837]
[1732733338817,8.91177364,239.7,239.68,2.0837]
[1732733339106,8.90791991,239.69,239.67,10.70220756]
[1732733339310,2.0835,239.7,239.67,2.2]
[1732733339512,8.90549849,239.69,239.67,2.2]
[1732733339712,8.90549849,239.68,239.67,2.2]
[1732733340114,8.90549849,239.68,239.66,2.2]
[1732733340407,15.32400354,239.67,239.63,2.2]
[1732733340723,8.90549598,239.66,239.63,2.2]
[1732733340801,2.2,239.77,239.63,2.2]
[1732733340802,6.41850756,239.71,239.63,2.2]
[1732733341004,2.0837,239.68,239.64,6.41850756]
[1732733341211,8.9029543,239.67,239.64,6.41850756]
[1732733341402,2.2,239.77,239.66,6.41850756]
[1732733341609,2.0834,239.72,239.66,6.41850756]
[1732733341817,8.90240044,239.71,239.66,6.41850756]
[1732733342009,8.90240044,239.7,239.66,8.50230756]
[1732733342207,10.98600044,239.69,239.63,2.2]
[1732733342411,8.90240044,239.68,239.65,6.41850756]
[1732733342622,2.0836,239.69,239.65,6.41850756]
[1732733343009,8.9026972,239.68,239.65,6.41850756]
[1732733343307,2.0836,239.69,239.65,6.41850756]
[1732733343509,8.90409389,239.68,239.65,6.41850756]
[1732733343703,2.0836,239.69,239.65,6.41850756]
[1732733343908,6.41850756,239.72,239.65,6.41850756]
[1732733344108,8.9028773,239.71,239.65,8.50230756]
[1732733344315,15.32138486,239.7,239.63,8.61850756]
[1732733344510,6.41850756,239.7,239.63,8.61850756]
[1732733344709,6.41850756,239.74,239.65,6.41850756]
[1732733344912,8.90366366,239.73,239.65,6.41850756]
[1732733345114,8.90366366,239.72,239.65,6.41850756]
[1732733345309,8.90366366,239.71,239.65,6.41850756]
[1732733345514,6.41850756,239.74,239.65,6.41850756]
[1732733345716,8.90384157,239.73,239.65,6.41850756]
[1732733346111,2.0835,239.7,239.65,8.50240756]
[1732733346218,6.41850756,239.7,239.63,8.61850756]
[1732733346919,2.0837,239.69,239.64,2.0839]
[1732733347810,6.41850756,239.7,239.65,2.2]
[1732733348012,6.41850756,239.69,239.61,1.2783]
[1732733348213,6.41850756,239.67,239.62,2.2]
[1732733348409,2.0839,239.65,239.63,2.2]
[1732733349616,2.084,239.64,239.63,2.2]
[1732733350115,2.2,239.74,239.6,2.2]
[1732733350320,6.41850756,239.64,239.6,2.2]
[1732733350718,6.41850756,239.64,239.59,2.2]
[1732733350916,6.41850756,239.62,239.59,2.2]
[1732733351125,6.41850756,239.6,239.56,2.2]
[1732733351821,2.0846,239.58,239.56,2.2]
[1732733352414,6.41850756,239.6,239.53,2.0849]
[1732733352617,2.0847,239.57,239.54,2.2]
[1732733352816,6.41850756,239.6,239.54,2.2]
[1732733353019,2.0847,239.56,239.54,2.2]
[1732733354219,6.41850756,239.58,239.5,79.70993105]
[1732733354421,6.41850756,239.58,239.5,47.16993105]
[1732733354622,6.41850756,239.58,239.51,2.2]
[1732733354823,2.0848,239.55,239.51,4.2851]
[1732733355015,2.0848,239.55,239.51,10.70360756]
[1732733355215,6.41850756,239.58,239.51,10.70360756]
[1732733355416,8.91688446,239.57,239.51,10.70360756]
[1732733355727,2.0849,239.55,239.51,10.70360756]
[1732733355820,6.41850756,239.58,239.51,2.2]
[1732733356024,8.916163,239.57,239.51,2.2]
[1732733356221,8.916163,239.56,239.51,2.2]
[1732733356418,8.916163,239.56,239.5,49.25513105]
[1732733356419,2.0847,239.56,239.5,49.25513105]
[1732733356616,6.41850756,239.58,239.51,2.2]
[1732733356822,8.91671726,239.57,239.51,4.2851]
[1732733357024,8.91671726,239.56,239.51,4.2851]
[1732733357327,6.41850756,239.53,239.46,2.0856]
[1732733357625,6.41850756,239.53,239.47,2.2]
[1732733357817,2.0854,239.49,239.47,2.2]
[1732733358018,6.41850756,239.53,239.47,2.2]
[1732733358626,6.41850756,239.55,239.49,2.0853]
[1732733358938,8.91633078,239.54,239.49,2.0853]
[1732733359130,6.41850756,239.57,239.48,6.41850756]
[1732733359423,8.91726207,239.56,239.48,6.41850756]
[1732733359628,8.91726207,239.55,239.51,2.0851]
[1732733359823,6.41850756,239.57,239.51,2.0851]
[1732733360022,8.91626586,239.56,239.51,2.0851]
[1732733360223,8.91626586,239.55,239.48,6.41850756]
[1732733360529,6.41850756,239.57,239.48,6.41850756]
[1732733360730,8.91617871,239.56,239.48,6.41850756]
[1732733360924,6.41850756,239.57,239.5,2.0852]
[1732733360925,2.0849,239.54,239.5,2.0852]
[1732733361727,2.0849,239.54,239.49,2.0853]
[1732733361928,2.0849,239.55,239.48,6.41850756]
[1732733362229,6.41850756,239.57,239.48,6.41850756]
[1732733362525,8.91304301,239.56,239.48,6.41850756]
[1732733362728,6.41850756,239.57,239.48,6.41850756]
[1732733362922,2.0849,239.54,239.49,2.0853]
[1732733363321,1.3283,239.59,239.5,6.41850756]
[1732733363519,8.91188161,239.58,239.57,6.41850756]
[1732733363729,6.41850756,239.68,239.57,8.61850756]
[1732733363920,8.91374809,239.67,239.59,6.41850756]
[1732733364121,2.0841,239.64,239.59,8.50290756]
[1732733364332,8.91374809,239.63,239.59,8.50290756]
[1732733364633,2.0841,239.63,239.59,2.0844]
[1732733367631,6.41850756,239.68,239.6,6.41850756]
[1732733367931,2.084,239.65,239.61,2.0843]
[1732733368135,8.91587077,239.64,239.61,2.0843]
[1732733368348,2.0837,239.68,239.64,2.084]
[1732733368538,8.9166676,239.67,239.64,6.41850756]
[1732733368741,1.2715,239.71,239.64,6.41850756]
[1732733369042,8.91710934,239.7,239.64,6.41850756]
[1732733369331,11.00070934,239.69,239.65,2.0839]
[1732733369534,8.91710934,239.68,239.64,6.41850756]
[1732733369728,6.41850756,239.72,239.64,6.41850756]
[1732733370034,8.91771146,239.71,239.64,6.41850756]
[1732733370338,8.91771146,239.7,239.64,6.41850756]
[1732733370532,8.91771146,239.69,239.64,6.41850756]
[1732733370827,6.41850756,239.72,239.64,6.41850756]
[1732733371023,11.00110944,239.71,239.66,2.0838]
[1732733371222,8.91760944,239.7,239.66,2.0838]
[1732733371441,8.91760944,239.69,239.66,2.0838]
[1732733371626,8.50170756,239.74,239.68,2.0837]
[1732733371829,8.50170756,239.74,239.69,2.2]
[1732733371830,8.91781827,239.73,239.69,2.2]
[1732733372082,8.91781827,239.72,239.69,2.2]
[1732733372230,2.0832,239.74,239.69,2.2]
[1732733372231,8.91781827,239.71,239.69,2.2]
[1732733372427,2.0832,239.74,239.69,2.2]
[1732733372630,8.91829404,239.73,239.69,2.2]
[1732733372829,8.91829404,239.72,239.69,2.2]
[1732733373130,8.91829404,239.71,239.69,2.2]
[1732733373435,2.0832,239.73,239.69,2.2]
[1732733373630,8.9175473,239.72,239.69,2.2]
[1732733373832,8.9175473,239.71,239.69,2.2]
[1732733374040,2.0832,239.73,239.69,2.2]
[1732733374236,8.91804303,239.72,239.69,2.2]
[1732733374430,2.0832,239.73,239.69,2.2]
[1732733374631,8.91743591,239.72,239.69,2.2]
[1732733374839,8.91743591,239.71,239.69,2.2]
[1732733375027,2.0832,239.73,239.69,2.2]
[1732733375433,8.91746939,239.72,239.69,2.2]
[1732733375637,2.0832,239.73,239.69,2.2]
[1732733375937,8.91674759,239.72,239.69,2.2]
[1732733376136,2.0832,239.73,239.69,2.2]
[1732733376334,8.91664929,239.72,239.69,2.2]
[1732733376531,2.0832,239.73,239.69,2.2]
[1732733376738,8.91605838,239.72,239.69,2.2]
[1732733376938,2.0832,239.73,239.69,2.2]
[1732733377236,8.91621222,239.72,239.69,2.2]
[1732733377429,2.0833,239.72,239.69,2.2]
[1732733377737,6.41850756,239.74,239.69,2.2]
[1732733377940,8.91527568,239.73,239.69,2.2]
[1732733378133,6.41850756,239.74,239.69,2.2]
[1732733378735,2.0834,239.72,239.69,2.2]
[1732733379536,12.53,239.93,239.69,2.2]
[1732733379734,2.0828,239.79,239.72,6.41850756]
[1732733380336,2.0828,239.79,239.75,2.0831]
[1732733380635,2.0828,239.79,239.76,2.2]
[1732733381343,6.41850756,239.81,239.76,2.2]
[1732733381344,2.0828,239.78,239.76,2.2]
[1732733382142,8.50140756,239.77,239.76,2.2]
[1732733383940,6.41850756,239.8,239.76,2.2]
[1732733384641,2.0829,239.77,239.76,2.2]
[1732733385558,2.0828,239.78,239.76,2.2]
[1732733386554,6.41850756,239.8,239.76,2.2]
[1732733386756,2.0827,239.79,239.76,2.2]
[1732733387456,6.41850756,239.8,239.76,2.2]
[1732733387656,2.0829,239.77,239.76,2.2]
[1732733388447,6.41850756,239.8,239.76,2.2]
[1732733388757,2.0827,239.79,239.76,2.2]
[1732733388955,1.2142,239.85,239.76,2.2]
[1732733389252,6.41850756,239.82,239.76,2.2]
[1732733389650,2.0827,239.79,239.76,2.2]
[1732733393556,1.2142,239.85,239.77,6.41850756]
[1732733393753,2.75396,239.9,239.79,6.41850756]
[1732733393754,2.0824,239.84,239.79,6.41850756]
[1732733393950,1.53246,239.9,239.79,6.41850756]
[1732733394157,6.41850756,239.88,239.79,6.41850756]
[1732733394356,2.0823,239.84,239.8,2.0826]
[1732733394753,2.0823,239.84,239.79,6.41850756]
[1732733394754,6.41850756,239.88,239.79,6.41850756]
[1732733395252,1.53246,239.9,239.79,6.41850756]
[1732733395458,6.41850756,239.88,239.79,6.41850756]
[1732733395956,6.41850756,239.88,239.81,2.0825]
[1732733396157,6.41850756,239.88,239.82,2.2]
[1732733396955,2.0823,239.84,239.8,2.0826]
[1732733397150,6.41850756,239.84,239.8,2.2]
[1732733397459,2.0825,239.81,239.8,2.2]
[1732733398059,2.0825,239.81,239.79,2.2]
[1732733400153,2.0824,239.83,239.79,2.2]
[1732733400356,6.41850756,239.84,239.79,2.2]
[1732733400871,2.0825,239.81,239.79,2.2]
[1732733401256,2.0825,239.82,239.79,2.2]
[1732733401474,6.41850756,239.86,239.79,2.2]
[1732733401856,2.0824,239.84,239.79,2.2]
[1732733402053,6.41850756,239.89,239.8,6.41850756]
[1732733402258,14.73,240.04,239.86,6.41850756]
[1732733402461,14.73,240.04,239.87,2.2]
[1732733402462,25.41986409,240.03,239.87,2.2]
[1732733402656,6.41850756,239.94,239.87,2.2]
[1732733403660,2.0817,239.91,239.87,4.282]
[1732733403956,6.41850756,239.94,239.87,2.2]
[1732733404159,6.41850756,239.92,239.86,2.2]
[1732733404425,8.86226838,239.91,239.86,2.2]
[1732733404858,10.94396838,239.91,239.87,6.41850756]
[1732733405052,6.41850756,239.95,239.87,6.41850756]
[1732733405267,8.8632547,239.94,239.87,6.41850756]
[1732733405453,8.8632547,239.93,239.91,8.50010756]
[1732733405660,6.41850756,239.99,239.92,2.2]
[1732733405851,2.0814,239.94,239.92,2.2]
[1732733406057,8.8660224,239.93,239.92,2.2]
[1732733406256,6.41850756,239.99,239.92,2.2]
[1732733406457,8.86733631,239.98,239.92,2.2]
[1732733406668,8.86733631,239.97,239.92,2.2]
[1732733406961,10.94863631,239.96,239.92,2.2]
[1732733407264,0.4275,240.0,239.93,6.41850756]
[1732733407465,8.86934943,239.99,239.93,6.41850756]
[1732733407668,10.95044943,239.98,239.93,6.41850756]
[1732733407858,10.95044943,239.98,239.92,2.2]
[1732733408202,0.4275,240.0,239.92,2.2]
[1732733408203,2.0813,239.95,239.92,2.2]
[1732733408361,8.86934943,239.94,239.92,2.2]
[1732733408560,2.0813,239.95,239.92,2.2]
[1732733409563,2.0814,239.94,239.92,2.2]
[1732733409764,0.4275,240.0,239.92,2.2]
[1732733410065,2.0812,239.97,239.92,2.2]
[1732733410260,8.87182457,239.96,239.92,4.2815]
[1732733410458,8.87182457,239.95,239.92,4.2815]
[1732733410662,2.0813,239.95,239.92,2.2]
[1732733410867,6.41850756,239.99,239.92,2.2]
[1732733411115,8.87250978,239.98,239.92,2.2]
[1732733411264,8.87250978,239.97,239.92,2.2]
[1732733411463,6.41850756,239.99,239.92,2.2]
[1732733411464,8.87250978,239.96,239.92,2.2]
[1732733411659,8.87250978,239.95,239.92,4.2816]
[1732733411877,6.41850756,239.99,239.92,2.2]
[1732733412264,2.0812,239.97,239.92,2.2]
[1732733412457,6.41850756,239.99,239.92,2.2]
[1732733412875,6.41850756,239.99,239.92,8.61850756]
[1732733413065,6.41850756,239.99,239.92,10.70010756]
[1732733413371,0.4275,240.0,239.92,8.61850756]
[1732733414069,2.0811,239.98,239.93,2.0814]
[1732733414388,0.4275,240.0,239.93,2.0814]
[1732733414864,2.0811,239.98,239.93,2.0814]
[1732733415066,0.4275,240.0,239.93,2.0814]
[1732733415865,2.0812,239.97,239.92,10.70010756]
[1732733417088,0.4275,240.0,239.92,8.61850756]
[1732733417368,6.41850756,239.99,239.92,2.2]
[1732733417763,8.88409715,239.98,239.92,8.61850756]
[1732733418069,2.0813,239.95,239.92,8.61850756]
[1732733418273,6.41850756,239.99,239.92,2.2]
[1732733418465,0.4275,240.0,239.92,8.61850756]
[1732733418671,2.0813,239.96,239.92,10.70010756]
[1732733419265,2.0813,239.96,239.92,2.2]
[1732733419772,6.41850756,239.93,239.92,2.2]
[1732733420373,1.3013,239.99,239.92,2.2]
[1732733420374,6.41850756,239.95,239.92,2.2]
[1732733420570,8.89298525,239.94,239.92,2.2]
[1732733420841,2.0815,239.93,239.92,2.2]
[1732733421072,6.41850756,239.95,239.92,2.2]
[1732733421465,2.0815,239.94,239.92,2.2]
[1732733421873,6.41850756,239.97,239.92,2.2]
[1732733422175,10.9810749,239.96,239.92,2.2]
[1732733422377,2.0813,239.96,239.92,2.2]
[1732733422966,40.85663289,240.07,239.92,2.2]
[1732733422967,34.49603289,240.07,239.92,2.2]
[1732733423171,6.2378,240.19,239.97,2.0811]
[1732733423172,2.0807,240.02,239.97,2.0811]
[1732733423476,8.90545343,240.01,239.98,2.2]
[1732733423672,8.90545343,240.0,239.98,2.2]
[1732733424093,2.0808,240.02,239.98,2.2]
[1732733424265,8.90707695,240.01,239.98,2.2]
[1732733424569,8.9086428,240.0,239.98,8.61850756]
[1732733424777,2.0808,240.01,239.98,8.61850756]
[1732733424982,8.9092389,240.0,239.99,2.081]
[1732733425175,8.19655756,240.08,240.0,6.41850756]
[1732733425470,8.19655756,240.08,239.98,2.2]
[1732733425471,8.90876831,240.07,240.02,6.41850756]
[1732733425674,0.55345,240.08,240.02,6.41850756]
[1732733425675,8.90876831,240.06,240.02,6.41850756]
[1732733425871,0.55345,240.08,240.02,6.41850756]
[1732733425872,8.90876831,240.05,240.02,6.41850756]
[1732733426074,8.90876831,240.04,240.02,6.41850756]
[1732733426271,6.97195756,240.08,240.0,6.41850756]
[1732733426474,8.90657616,240.07,239.99,1.223]
[1732733426670,8.90657616,240.06,239.99,1.223]
[1732733426872,2.0804,240.06,240.0,2.0809]
[1732733427183,6.97195756,240.08,240.0,2.0809]
[1732733427269,8.90650446,240.07,240.0,2.0809]
[1732733427477,6.41850756,240.06,239.99,1.223]
[1732733428178,6.41850756,240.06,239.89,1.2149]
[1732733428179,6.41850756,240.04,239.96,6.41850756]
[1732733428492,6.41850756,240.0,239.97,2.2]
[1732733428671,2.0812,239.97,239.96,2.2]
[1732733428875,6.41850756,240.0,239.96,2.2]
[1732733429079,2.6054,240.07,239.96,2.2]
[1732733429283,2.0806,240.04,239.99,6.41850756]
[1732733430993,2.0806,240.04,239.98,2.0811]
[1732733431174,2.0806,240.04,239.98,8.49960756]
[1732733431375,2.0806,240.04,239.99,2.0809]
[1732733431571,6.41850756,240.06,239.99,2.0809]
[1732733431775,2.0805,240.05,239.99,2.0809]
[1732733433080,6.97195756,240.08,239.99,2.0809]
[1732733433380,2.0806,240.04,239.98,8.49950756]
[1732733433574,6.41850756,240.04,239.96,6.41850756]
[1732733433876,6.41850756,240.04,239.97,2.2]
[1732733434175,10.54719338,240.08,239.97,2.2]
[1732733434378,8.90535444,240.07,239.97,2.2]